bitfinex-derivatives/quotes_SOLF0:USTF0_20250530
["timestamp","ask_amount","ask_price","bid_price","bid_amount"]
[1748636749428,6.2433,160.14,160.12,37.4239]
[1748636754129,6.2433,160.14,160.12,6.2439]
[1748636754525,0.04239108,160.16,160.13,6.2436]
[1748636754727,0.04239108,160.16,160.1,151.84]
[1748636754921,0.04239108,160.16,160.1,162.70317732]
[1748636755129,0.04239108,160.16,160.13,6.2434]
[1748636755924,0.04239108,160.16,160.11,6.2442]
[1748636756121,6.95765442,160.15,160.07,31.18]
[1748636756328,6.95765442,160.15,160.07,38.13765442]
[1748636756329,0.04149503,160.13,160.07,38.13765442]
[1748636756626,6.2447,160.11,160.08,6.2454]
[1748636756930,6.2447,160.11,160.09,6.95765442]
[1748636757236,6.2447,160.11,160.08,6.2454]
[1748636757427,6.2447,160.11,160.09,6.95765442]
[1748636760036,6.2447,160.11,160.07,31.18]
[1748636760037,6.2447,160.11,160.08,6.2455]
[1748636762147,6.2442,160.12,160.09,6.2451]
[1748636762447,6.2442,160.12,160.07,31.18]
[1748636762945,6.2442,160.12,160.09,6.245]
[1748636763342,6.2442,160.12,160.1,6.2448]
[1748636763741,0.04149503,160.13,160.07,31.18]
[1748636765547,0.04149503,160.13,160.09,10.87623492]
[1748636765845,0.04149503,160.13,160.12,6.244]
[1748636779359,0.04149503,160.13,160.11,48.30063492]
[1748636779360,6.28509503,160.13,160.11,48.30063492]
[1748636779962,6.28509503,160.13,160.11,37.4244]
[1748636780262,0.04149503,160.13,160.12,6.244]
[1748636781163,0.04149503,160.13,160.11,31.18]
[1748636781164,0.04149503,160.13,160.11,37.4242]
[1748636781659,0.04149503,160.13,160.12,6.244]
[1748636782058,0.04149503,160.13,160.12,13.20258141]
[1748636783958,6.28539503,160.13,160.11,31.18]
[1748636784162,6.28539503,160.13,160.11,38.13858141]
[1748636784958,0.04149503,160.13,160.11,31.18]
[1748636785164,0.04149503,160.13,160.12,6.95858141]
[1748636785464,0.04149503,160.13,160.12,13.20258141]
[1748636787560,0.04149503,160.13,160.12,6.95858141]
[1748636788163,0.04149503,160.13,160.11,31.18]
[1748636788363,0.04149503,160.13,160.09,6.95858141]
[1748636788662,0.04149503,160.13,160.09,13.20358141]
[1748636788663,6.2442,160.12,160.09,13.20358141]
[1748636788868,0.04149503,160.13,160.09,13.20358141]
[1748636789069,0.04149503,160.13,160.09,6.95858141]
[1748636790370,6.28529503,160.13,160.1,6.2446]
[1748636790771,6.28529503,160.13,160.11,6.95858141]
[1748636791777,6.244,160.12,160.11,6.95858141]
[1748636791967,6.244,160.12,160.09,13.20358141]
[1748636792475,6.244,160.12,160.09,6.245]
[1748636792670,6.244,160.12,160.1,6.95858141]
[1748636793976,6.2444,160.11,160.1,6.95858141]
[1748636794675,6.2444,160.11,160.09,6.95858141]
[1748636794874,6.2444,160.11,160.09,13.20378141]
[1748636795870,6.2442,160.12,160.07,31.18]
[1748636796074,6.2442,160.12,160.09,6.95858141]
[1748636796471,6.2445,160.11,160.09,6.2451]
[1748636796675,6.2445,160.11,160.1,6.95858141]
[1748636797072,6.2445,160.11,160.08,6.2454]
[1748636797272,6.2445,160.11,160.09,6.95858141]
[1748636799283,6.2448,160.1,160.09,6.95858141]
[1748636799685,6.2448,160.1,160.07,37.4258]
[1748636799987,6.2448,160.1,160.08,6.95858141]
[1748636800184,6.2448,160.1,160.08,13.20408141]
[1748636800486,6.2446,160.11,160.08,13.20408141]
[1748636800986,0.04149503,160.13,160.08,13.20408141]
[1748636801585,0.04149503,160.13,160.08,6.95858141]
[1748636801780,6.245,160.1,160.08,6.95858141]
[1748636802184,6.245,160.1,160.08,13.20408141]
[1748636802796,6.245,160.1,160.07,37.4258]
[1748636802993,6.245,160.1,160.08,6.95858141]
[1748636803288,6.2446,160.11,160.08,6.2455]
[1748636803894,6.2448,160.1,160.08,6.2455]
[1748636804089,6.95858141,160.12,160.05,31.49191]
[1748636804299,0.04353633,160.1,160.05,7.27049141]
[1748636804603,0.04353633,160.1,160.07,6.95858141]
[1748636804896,0.04353633,160.1,160.09,6.95858141]
[1748636805092,6.28853633,160.1,160.09,6.95858141]
[1748636805598,0.04353633,160.1,160.09,6.95858141]
[1748636806498,4.1881,160.15,160.09,6.95858141]
[1748636806696,2.1213,160.15,160.12,6.95858141]
[1748636807296,2.1213,160.15,160.13,6.2434]
[1748636808501,8.3642,160.15,160.12,6.28539887]
[1748636812400,6.2433,160.14,160.12,0.04149887]
[1748636814094,6.2433,160.14,160.12,6.28549887]
[1748636816004,6.2433,160.14,160.12,0.04149887]
[1748636816599,8.3643,160.15,160.12,0.04149887]
[1748636818102,6.2433,160.14,160.12,0.04149887]
[1748636819498,2.1213,160.15,160.12,0.04149887]
[1748636820103,6.2435,160.14,160.12,0.04149887]
[1748636821402,8.3643,160.15,160.12,6.28549887]
[1748636823104,6.2433,160.14,160.12,0.04149887]
[1748636825506,6.2436,160.13,160.12,0.04149887]
[1748636844521,0.04178463,160.16,160.15,6.2428]
[1748636844721,0.04178463,160.16,160.12,38.14190746]
[1748636844722,0.04178463,160.16,160.14,6.96040859]
[1748636845222,0.04178463,160.16,160.15,6.2428]
[1748636852027,0.04178463,160.16,160.14,6.2431]
[1748636852240,0.04178463,160.16,160.13,10.8656596]
[1748636853639,0.04178463,160.16,160.15,6.2429]
[1748636854635,0.04178463,160.16,160.14,6.2431]
[1748636857245,0.04178463,160.16,160.13,10.8656596]
[1748636858350,0.04178463,160.16,160.12,31.18149887]
[1748636859053,6.243,160.15,160.12,37.42519887]
[1748636859657,0.04178463,160.16,160.12,0.04149887]
[1748636859957,6.2435,160.14,160.12,0.04149887]
[1748636860450,0.04178463,160.16,160.12,0.04149887]
[1748636860451,6.2436,160.13,160.12,0.04149887]
[1748636862244,31.14,160.15,160.08,6.2452]
[1748636862654,6.2451,160.1,160.08,6.2452]
[1748636862854,6.2451,160.1,160.07,37.3858]
[1748636863057,6.2451,160.1,160.07,31.14]
[1748636863251,6.2454,160.09,160.07,6.2457]
[1748636863452,0.04307081,160.1,160.05,0.31191]
[1748636864454,6.2458,160.08,160.06,6.2463]
[1748636864661,6.2458,160.08,160.05,0.31191]
[1748636866258,6.2458,160.08,160.05,6.55831]
[1748636866445,0.04307081,160.1,160.05,0.31191]
[1748636867558,0.04307081,160.1,160.09,6.2452]
[1748636874563,31.12,160.16,160.12,6.2439]
[1748636875060,31.12,160.16,160.08,31.12]
[1748636875664,0.04700339,160.14,160.1,0.04147618]
[1748636876164,6.29030339,160.14,160.11,6.2443]
[1748636881162,0.04700339,160.14,160.1,0.04147618]
[1748636881575,6.2443,160.12,160.1,0.04147618]
[1748636882671,6.2438,160.13,160.1,0.04147618]
[1748636882872,0.04700339,160.14,160.1,0.04147618]
[1748636883473,6.2444,160.11,160.1,0.04147618]
[1748636885566,31.12,160.12,160.05,37.3664]
[1748636885567,6.2456,160.08,160.05,37.3664]
[1748636886168,6.2456,160.08,160.05,6.2464]
[1748636886674,6.28757243,160.08,160.05,6.2464]
[1748636886874,6.246,160.07,160.04,6.247]
[1748636887679,6.28777243,160.08,160.05,6.2467]
[1748636888478,6.28777243,160.08,160.03,31.12]
[1748636888479,6.246,160.07,160.04,6.247]
[1748636889870,6.2464,160.06,160.03,37.3674]
[1748636890071,0.04197243,160.08,160.03,31.12]
[1748636890477,6.2469,160.05,160.03,31.12]
[1748636891777,6.2469,160.05,160.02,6.61208]
[1748636892074,31.18197243,160.08,160.02,0.36448]
[1748636892470,6.2473,160.04,160.02,0.36448]
[1748636892680,6.2473,160.04,160.02,6.61238]
[1748636894576,6.28865127,160.05,160.02,6.61238]
[1748636898483,0.04175127,160.05,160.03,6.2473]
[1748636900385,0.04175127,160.05,160.02,0.36448]
[1748636900985,0.04175127,160.05,160.03,6.2473]
[1748636901585,0.04175127,160.05,160.02,6.61228]
[1748636902289,6.28875127,160.05,160.02,6.61228]
[1748636902783,6.2475,160.03,160.02,0.36448]
[1748636910595,41.9856596,160.04,159.93,31.12]
[1748636910796,0.04044554,160.0,159.93,31.12]
[1748636911088,6.2511,159.94,159.93,31.12]
[1748636911594,6.2511,159.94,159.9,151.72]
[1748636911796,6.2511,159.94,159.91,6.2519]
[1748636913300,6.29671893,159.95,159.92,6.2516]
[1748636913495,0.04601893,159.95,159.9,31.12]
[1748636913993,6.29691893,159.95,159.92,6.2518]
[1748636915595,6.29691893,159.95,159.91,10.8656596]
[1748636915596,0.04601893,159.95,159.91,10.8656596]
[1748636916197,0.04601893,159.95,159.94,6.2511]
[1748636925196,0.04601893,159.95,159.92,31.14]
[1748636926006,0.04601893,159.95,159.89,62.0]
[1748636926007,0.04601893,159.95,159.89,93.14]
[1748636926404,6.29691893,159.95,159.92,6.2516]
[1748636927399,6.29691893,159.95,159.9,6.2524]
[1748636927400,6.2516,159.93,159.9,6.2524]
[1748636927707,0.04601893,159.95,159.88,31.14]
[1748636927900,0.04229115,159.93,159.88,31.14]
[1748636928101,6.2519,159.92,159.89,6.2528]
[1748636928408,6.2519,159.92,159.88,31.14]
[1748636928409,0.04229115,159.93,159.88,31.14]
[1748636929006,6.2519,159.92,159.89,6.2528]
[1748636929395,6.2523,159.91,159.88,37.3934]
[1748636929599,0.04229115,159.93,159.88,31.14]
[1748636930107,0.04229115,159.93,159.89,10.8656596]
[1748636930509,0.04229115,159.93,159.88,31.14]
[1748636931812,0.04229115,159.93,159.91,6.2521]
[1748636932008,0.04229115,159.93,159.88,31.14]
[1748636934107,0.04229115,159.93,159.91,6.252]
[1748636935614,0.04229115,159.93,159.9,6.2525]
[1748636936014,0.04229115,159.93,159.89,31.12]
[1748636936825,6.29379115,159.93,159.9,6.2524]
[1748636937411,6.29379115,159.93,159.89,37.3728]
[1748636938418,6.2521,159.92,159.89,31.12]
[1748636939214,6.2521,159.92,159.89,37.3727]
[1748636940218,6.2524,159.91,159.89,31.12]
[1748636940522,6.2524,159.91,159.88,6.2532]
[1748636940721,0.04229115,159.93,159.86,572.9043]
[1748636941226,6.252,159.92,159.89,6.2528]
[1748636941413,0.04229115,159.93,159.86,583.7699596]
[1748636941723,31.12,159.99,159.89,10.8656596]
[1748636941910,31.12,160.02,159.9,31.12]
[1748636942414,31.12,160.02,159.93,6.2512]
[1748636942415,6.2501,159.97,159.93,6.2512]
[1748636942816,6.2503,159.96,159.93,6.29367136]
[1748636943218,0.04541345,159.97,159.94,6.2509]
[1748636943523,6.29551345,159.97,159.94,6.2509]
[1748636943721,0.04541345,159.97,159.93,6.29367136]
[1748636944118,6.2503,159.96,159.93,0.04247136]
[1748636944316,0.04541345,159.97,159.94,6.2508]
[1748636944722,6.29561345,159.97,159.94,6.2508]
[1748636944921,0.04541345,159.97,159.93,0.04247136]
[1748636945220,6.2506,159.96,159.93,0.04247136]
[1748636945423,0.04541345,159.97,159.93,0.04247136]
[1748636946725,0.04541345,159.97,159.93,6.29367136]
[1748636947426,0.04541345,159.97,159.93,0.04247136]
[1748636948527,6.251,159.94,159.93,0.04247136]
[1748636950426,6.2526,159.91,159.88,6.2532]
[1748636950925,6.2528,159.9,159.87,6.2536]
[1748636951131,6.2528,159.9,159.86,31.12]
[1748636951522,0.04069289,159.9,159.86,41.9856596]
[1748636951729,0.04069289,159.9,159.87,62.0]
[1748636952130,6.2509,159.95,159.87,62.0]
[1748636952629,6.2509,159.95,159.92,6.2518]
[1748636953126,6.29701262,159.95,159.92,6.29524798]
[1748636953327,6.2511,159.94,159.92,0.04344798]
[1748636954227,6.2514,159.93,159.92,0.04344798]
[1748636955231,6.2523,159.91,159.86,31.12]
[1748636955831,6.2523,159.91,159.88,6.2531]
[1748636956332,6.29692886,159.91,159.88,6.2531]
[1748636956529,6.2526,159.9,159.87,6.2535]
[1748636956729,0.04462886,159.91,159.87,6.2535]
[1748636956930,0.04462886,159.91,159.86,31.12]
[1748636958130,0.04462886,159.91,159.89,6.2528]
[1748636958434,0.04462886,159.91,159.86,31.12]
[1748636959028,0.04462886,159.91,159.89,6.2528]
[1748636959731,0.04462886,159.91,159.88,6.2532]
[1748636960127,6.29712886,159.91,159.88,6.2532]
[1748636960329,0.04462886,159.91,159.89,6.253]
[1748636961438,6.29692886,159.91,159.88,6.2532]
[1748636961737,6.29692886,159.91,159.86,31.12]
[1748636961738,0.04462886,159.91,159.86,31.12]
[1748636961938,0.04462886,159.91,159.88,6.2531]
[1748636962538,6.29702886,159.91,159.88,6.2531]
[1748636963841,6.2527,159.9,159.87,6.2536]
[1748636964138,0.04462886,159.91,159.86,31.12]
[1748636964341,6.29712886,159.91,159.88,6.2532]
[1748636964636,0.04462886,159.91,159.83,105.9501596]
[1748636964837,6.2528,159.9,159.83,43.9501596]
[1748636965031,0.04462886,159.91,159.87,6.2535]
[1748636965238,0.04462886,159.91,159.83,43.9501596]
[1748636965438,6.2528,159.9,159.83,43.9501596]
[1748636965634,6.2528,159.9,159.87,6.2536]
[1748636965937,6.2528,159.9,159.83,43.9501596]
[1748636966135,6.2528,159.9,159.87,6.2536]
[1748636966330,0.04462886,159.91,159.83,31.12]
[1748636966736,6.2536,159.88,159.85,6.2544]
[1748636967032,2.1213,159.9,159.8,10.8656596]
[1748636967332,0.04777655,159.87,159.85,6.2545]
[1748636967942,6.30157655,159.87,159.84,6.2548]
[1748636968234,0.04777655,159.87,159.81,31.12]
[1748636968538,0.04777655,159.87,159.73,12.5183]
[1748636968737,0.04426397,159.82,159.78,10.8656596]
[1748636968929,0.04426397,159.82,159.79,31.12]
[1748636969134,0.04426397,159.82,159.81,6.2561]
[1748636970942,31.12,159.89,159.79,103.9856596]
[1748636971243,35.3571,159.9,159.8,6.2076]
[1748636971943,0.04056174,159.87,159.85,6.2542]
[1748636972337,0.04056174,159.87,159.83,0.04779819]
[1748636972741,6.29446174,159.87,159.84,6.2547]
[1748636973847,0.04056174,159.87,159.85,6.2546]
[1748636974439,0.04056174,159.87,159.86,6.2542]
[1748636978341,0.04056174,159.87,159.86,6.2542]
[1748636980145,0.04056174,159.87,159.83,31.16779819]
[1748636980746,0.04056174,159.87,159.85,6.2543]
[1748636980948,0.04056174,159.87,159.83,31.16779819]
[1748636981145,0.04056174,159.87,159.86,6.2542]
[1748636982145,0.04056174,159.87,159.83,31.16779819]
[1748636983050,0.04056174,159.87,159.84,6.2547]
[1748636983346,0.04056174,159.87,159.83,31.16779819]
[1748636983556,0.04056174,159.87,159.83,0.04779819]
[1748636984447,6.2547,159.85,159.83,0.04779819]
[1748636987653,6.2543,159.86,159.83,6.30309819]
[1748636988652,6.2546,159.85,159.83,0.04779819]
[1748636990148,6.2544,159.86,159.83,6.30309819]
[1748637000365,6.2546,159.85,159.83,0.04779819]
[1748637000764,0.04056174,159.87,159.83,0.04779819]
[1748637000954,6.2543,159.86,159.83,6.30299819]
[1748637001963,6.2543,159.86,159.84,6.98337637]
[1748637003762,0.04056174,159.87,159.84,6.98337637]
[1748637004160,0.04056174,159.87,159.83,6.30309819]
[1748637004362,0.04056174,159.87,159.83,0.04779819]
[1748637004664,6.2545,159.86,159.83,7.03117456]
[1748637005564,6.2547,159.85,159.83,7.03117456]
[1748637006555,0.04056174,159.87,159.83,0.04779819]
[1748637007964,6.2544,159.86,159.83,0.04779819]
[1748637008465,6.2544,159.86,159.83,6.30299819]
[1748637008963,6.2544,159.86,159.83,0.04779819]
[1748637011561,0.04056174,159.87,159.84,6.98337637]
[1748637011767,0.04056174,159.87,159.86,6.98337637]
[1748637014464,0.04056174,159.87,159.86,13.23757637]
[1748637015468,0.04056174,159.87,159.86,6.98337637]
[1748637018370,0.04056174,159.87,159.86,13.23757637]
[1748637019766,8.304,159.91,159.88,6.2533]
[1748637019966,8.304,159.91,159.89,6.98337637]
[1748637021266,6.2526,159.9,159.89,6.98337637]
[1748637023461,6.2524,159.91,159.89,6.98337637]
[1748637023881,0.04160796,159.92,159.89,6.98337637]
[1748637024074,0.04160796,159.92,159.88,0.04561661]
[1748637024574,6.253,159.89,159.88,0.04561661]
[1748637033178,6.253,159.89,159.77,540.26]
[1748637033179,38.08337637,159.89,159.77,540.26]
[1748637033382,38.08337637,159.89,159.81,6.98337637]
[1748637033383,4.1373,159.88,159.81,6.98337637]
[1748637033778,6.255,159.84,159.81,6.98337637]
[1748637033981,6.255,159.84,159.83,6.98337637]
[1748637034275,0.04110283,159.85,159.83,6.98337637]
[1748637034883,6.29590283,159.85,159.83,6.98337637]
[1748637038287,0.04110283,159.85,159.82,6.30025505]
[1748637038490,0.04110283,159.85,159.84,6.98337637]
[1748637039984,0.04110283,159.85,159.82,6.30025505]
[1748637040185,6.29570283,159.85,159.83,6.98337637]
[1748637043289,0.04110283,159.85,159.83,6.98337637]
[1748637043985,0.04110283,159.85,159.82,6.30025505]
[1748637043986,6.2554,159.83,159.82,0.04475505]
[1748637045883,6.2551,159.84,159.82,0.04475505]
[1748637046592,0.04110283,159.85,159.83,6.98337637]
[1748637047193,6.29570283,159.85,159.83,6.98337637]
[1748637050097,6.29570283,159.85,159.83,13.23867637]
[1748637051293,6.29570283,159.85,159.83,6.98337637]
[1748637053899,0.04110283,159.85,159.83,6.98337637]
[1748637054600,6.29570283,159.85,159.83,6.98337637]
[1748637055801,6.29570283,159.85,159.82,6.30025505]
[1748637056003,6.29570283,159.85,159.83,6.98337637]
[1748637059002,0.04110283,159.85,159.83,13.23867637]
[1748637059898,6.29580283,159.85,159.83,6.98337637]
[1748637060403,0.04110283,159.85,159.83,6.98337637]
[1748637061001,0.04110283,159.85,159.83,13.23847637]
[1748637062310,0.04110283,159.85,159.84,6.255]
[1748637062499,20.26,159.9,159.84,31.74]
[1748637062704,20.26,159.9,159.87,6.98337637]
[1748637062904,26.5129,159.9,159.87,13.23697637]
[1748637063109,20.26,159.9,159.87,6.98337637]
[1748637063405,6.2533,159.89,159.87,6.98337637]
[1748637063610,20.30702848,159.9,159.87,6.98337637]
[1748637063905,20.30702848,159.9,159.86,0.04641135]
[1748637064110,6.2538,159.88,159.86,0.04641135]
[1748637064310,20.30702848,159.9,159.86,0.04641135]
[1748637065107,20.30702848,159.9,159.86,6.30051135]
[1748637065609,20.30702848,159.9,159.86,0.04641135]
[1748637067107,6.2537,159.88,159.86,0.04641135]
[1748637067309,6.2537,159.88,159.87,6.98337637]
[1748637067509,20.30702848,159.9,159.87,6.98337637]
[1748637067910,26.55972848,159.9,159.88,6.2534]
[1748637068210,26.55972848,159.9,159.87,6.98337637]
[1748637068411,26.55972848,159.9,159.87,13.23677637]
[1748637069013,26.55972848,159.9,159.87,6.98337637]
[1748637069412,26.55972848,159.9,159.88,6.2534]
[1748637069914,26.55972848,159.9,159.87,6.98337637]
[1748637069915,26.55972848,159.9,159.87,13.23697637]
[1748637070208,6.253,159.89,159.87,13.23697637]
[1748637071613,6.253,159.89,159.87,6.98337637]
[1748637073215,20.30702848,159.9,159.87,6.98337637]
[1748637073416,20.30702848,159.9,159.89,6.98337637]
[1748637073918,20.30702848,159.9,159.89,13.23637637]
[1748637077521,11.47702848,159.9,159.89,13.23637637]
[1748637083127,11.47702848,159.9,159.88,31.72]
[1748637083329,11.47702848,159.9,159.87,6.2537]
[1748637083521,11.47702848,159.9,159.88,6.98337637]
[1748637085030,11.47702848,159.9,159.89,6.253]
[1748637089223,13.009,159.94,159.91,6.252]
[1748637089224,19.2602,159.94,159.91,6.252]
[1748637089431,19.2602,159.94,159.92,6.98337637]
[1748637091436,13.009,159.94,159.91,0.04707553]
[1748637092030,6.2518,159.92,159.91,0.04707553]
[1748637120253,6.2511,159.94,159.91,0.04707553]
[1748637120458,8.88063995,159.95,159.92,6.98337637]
[1748637121258,15.13153995,159.95,159.92,13.23497637]
[1748637121762,8.88063995,159.95,159.92,6.98337637]
[1748637122457,8.88063995,159.95,159.94,6.98337637]
[1748637123458,0.04063995,159.95,159.94,6.98337637]
[1748637124563,0.04063995,159.95,159.94,13.23447637]
[1748637126366,6.29133995,159.95,159.91,0.04707553]
[1748637126664,0.04063995,159.95,159.94,6.98337637]
[1748637126966,8.89063995,159.95,159.94,6.98337637]
[1748637127864,8.89063995,159.95,159.91,0.04707553]
[1748637128369,3.73697277,159.94,159.91,0.04707553]
[1748637128569,6.2518,159.92,159.91,0.04707553]
[1748637155991,8.89063995,159.95,159.91,7.0304519]
[1748637156191,21.20063995,159.95,159.94,6.98337637]
[1748637156692,12.35063995,159.95,159.94,6.98337637]
[1748637156887,18.60133995,159.95,159.94,6.98337637]
[1748637161793,18.60133995,159.95,159.93,6.2514]
[1748637161997,6.2512,159.94,159.93,6.98337637]
[1748637163198,18.60133995,159.95,159.93,6.98337637]
[1748637167299,6.29133995,159.95,159.93,6.98337637]
[1748637170602,6.29133995,159.95,159.93,13.23477637]
[1748637171099,6.251,159.94,159.93,6.98337637]
[1748637171700,0.04063995,159.95,159.93,6.98337637]
[1748637172500,0.04063995,159.95,159.94,6.251]
[1748637179307,0.04063995,159.95,159.94,13.23437637]
[1748637180699,0.04063995,159.95,159.94,6.98337637]
[1748637180904,0.04063995,159.95,159.92,31.14]
[1748637181107,6.2513,159.94,159.92,38.12337637]
[1748637182502,6.2514,159.93,159.92,38.12337637]
[1748637183307,6.2512,159.94,159.92,38.12337637]
[1748637183511,0.04063995,159.95,159.92,31.14]
[1748637183707,6.2517,159.93,159.91,7.0304519]
[1748637184208,6.2518,159.92,159.91,0.04707553]
[1748637186913,0.04063995,159.95,159.91,0.04707553]
[1748637187107,0.04063995,159.95,159.92,6.98337637]
[1748637187502,6.29153995,159.95,159.92,13.23497637]
[1748637188211,0.04063995,159.95,159.92,13.23497637]
[1748637188914,6.29143995,159.95,159.92,13.23497637]
[1748637189306,6.29143995,159.95,159.94,6.98337637]
[1748637189514,0.04063995,159.95,159.94,6.98337637]
[1748637190012,6.29133995,159.95,159.94,6.98337637]
[1748637191705,0.04063995,159.95,159.94,6.98337637]
[1748637192217,0.04063995,159.95,159.94,13.23447637]
[1748637196219,0.04063995,159.95,159.94,6.98337637]
[1748637197215,0.04063995,159.95,159.93,37.3713]
[1748637197216,0.04063995,159.95,159.93,31.12]
[1748637197422,0.04063995,159.95,159.93,38.10337637]
[1748637197822,6.2511,159.94,159.93,31.12]
[1748637198022,6.2511,159.94,159.93,38.10337637]
[1748637198717,0.04063995,159.95,159.93,38.10337637]
[1748637199125,0.04063995,159.95,159.93,44.35467637]
[1748637199715,15.02063995,159.95,159.93,44.35467637]
[1748637200222,15.02063995,159.95,159.94,6.251]
[1748637201519,15.1097,159.98,159.95,6.2505]
[1748637201719,15.1097,159.98,159.96,6.98337637]
[1748637203725,6.2499,159.97,159.96,6.98337637]
[1748637204820,15.1097,159.98,159.96,6.98337637]
[1748637206024,8.86,159.98,159.96,13.23337637]
[1748637206627,8.86,159.98,159.97,6.2499]
[1748637207825,8.86,159.98,159.96,13.23347637]
[1748637211328,15.1096,159.98,159.96,13.23347637]
[1748637213631,6.2496,159.98,159.96,13.23347637]
[1748637216640,6.29417927,159.99,159.96,13.23347637]
[1748637216938,6.29417927,159.99,159.97,6.98337637]
[1748637218838,6.29417927,159.99,159.97,13.23317637]
[1748637219133,0.04487927,159.99,159.97,6.98337637]
[1748637219540,0.04487927,159.99,159.97,13.23307637]
[1748637223340,6.29407927,159.99,159.97,13.23307637]
[1748637223640,0.04487927,159.99,159.97,6.98337637]
[1748637223833,6.29417927,159.99,159.97,6.98337637]
[1748637224541,6.2495,159.98,159.95,0.04304813]
[1748637224741,6.2495,159.98,159.97,6.98337637]
[1748637225540,6.29417927,159.99,159.97,6.98337637]
[1748637226343,6.2495,159.98,159.97,6.98337637]
[1748637233046,31.14487927,159.99,159.88,62.0]
[1748637233246,2.142,159.97,159.91,6.98337637]
[1748637234150,0.0430931,159.96,159.92,0.04559564]
[1748637236154,6.2514,159.93,159.92,0.04559564]
[1748637244751,31.1,159.95,159.86,37.354]
[1748637244752,6.2531,159.89,159.86,37.354]
[1748637245058,6.2531,159.89,159.87,6.98337637]
[1748637245247,6.98337637,159.92,159.86,6.98337637]
[1748637245447,33.1424,159.91,159.84,97.73329011]
[1748637245657,35.137,159.91,159.84,97.73329011]
[1748637245854,0.0455807,159.89,159.86,0.04594286]
[1748637246654,6.2538,159.87,159.86,0.04594286]
[1748637259570,0.0455807,159.89,159.86,0.04594286]
[1748637260059,6.2534,159.88,159.86,6.29984286]
[1748637261066,6.2534,159.88,159.86,0.04594286]
[1748637261667,6.2534,159.88,159.86,6.30014286]
[1748637262069,6.2534,159.88,159.86,0.04594286]
[1748637264175,0.0455807,159.89,159.86,0.04594286]
[1748637264867,6.2537,159.88,159.86,0.04594286]
[1748637267574,6.2537,159.88,159.86,6.30014286]
[1748637269078,6.2987807,159.89,159.86,6.30014286]
[1748637269577,0.0455807,159.89,159.88,6.2534]
[1748637269975,0.0455807,159.89,159.88,13.23182866]
[1748637270875,0.0455807,159.89,159.88,6.97842866]
[1748637273174,0.0455807,159.89,159.88,6.2534]
[1748637273673,0.0455807,159.89,159.87,6.2536]
[1748637273977,0.0455807,159.89,159.86,0.04594286]
[1748637274374,6.2536,159.88,159.86,0.04594286]
[1748637274771,0.0455807,159.89,159.86,0.04594286]
[1748637275578,6.2534,159.88,159.86,0.04594286]
[1748637275980,0.0455807,159.89,159.86,6.30004286]
[1748637276172,6.2987807,159.89,159.86,6.30004286]
[1748637276373,0.0455807,159.89,159.86,6.30004286]
[1748637277379,6.2535,159.88,159.86,0.04594286]
[1748637280675,6.2987807,159.89,159.86,6.30014286]
[1748637280881,0.0455807,159.89,159.86,0.04594286]
[1748637281383,0.0455807,159.89,159.88,6.2534]
[1748637288995,0.0455807,159.89,159.87,6.2537]
[1748637289302,14.4255807,159.89,159.87,6.2537]
[1748637290294,14.4255807,159.89,159.86,0.04594286]
[1748637290495,14.4255807,159.89,159.88,6.2534]
[1748637292402,14.4255807,159.89,159.87,6.2536]
[1748637292901,20.6788807,159.89,159.86,6.30014286]
[1748637293297,20.6788807,159.89,159.86,0.04594286]
[1748637293895,20.6788807,159.89,159.87,6.98026911]
[1748637296203,20.6788807,159.89,159.87,13.23406911]
[1748637296704,14.4255807,159.89,159.87,13.23406911]
[1748637299101,20.6785807,159.89,159.87,13.23406911]
[1748637299999,14.4255807,159.89,159.87,13.23406911]
[1748637300408,14.4255807,159.89,159.88,6.2534]
[1748637300803,14.4255807,159.89,159.87,6.98026911]
[1748637301003,14.4255807,159.89,159.86,6.29994286]
[1748637301406,14.4255807,159.89,159.86,7.02621197]
[1748637302202,14.4255807,159.89,159.86,0.04594286]
[1748637303210,6.2538,159.87,159.86,0.04594286]
[1748637305616,6.2535,159.88,159.86,0.04594286]
[1748637305909,14.4255807,159.89,159.86,0.04594286]
[1748637306106,6.2538,159.87,159.86,0.04594286]
[1748637308006,6.2536,159.88,159.86,0.04594286]
[1748637308711,6.2538,159.87,159.86,0.04594286]
[1748637316920,6.2535,159.88,159.86,0.04594286]